[Event "LEM Niedersachsen-A-Open 2025"]
[Site "Verden"]
[Date "2025.01.02"]
[Round "2.25"]
[White "Goertzen, Simon"]
[Black "Schumann, Steffen"]
[Result "0-1"]
[ECO "B72"]
[WhiteElo "1887"]
[BlackElo "2002"]
[Annotator "RC"]
[PlyCount "142"]
[EventDate "2024.12.27"]
[EventType "swiss"]
[EventCountry "GER"]
[SourceTitle "playchess.com"]
[Source "ChessBase"]
[SourceQuality "1"]
[TimeControl "40/5400+30:1800+30"]

1. e4 {[%emt 0:00:03]} c5 {[%emt 0:01:42]} 2. Nf3 {[%emt 0:00:06]} d6 {[%emt 0:00:03]} 3. d4 {[%emt 0:00:06]} cxd4 {[%emt 0:00:04]} 4. Nxd4 {[%emt 0:00:05]} Nf6 {[%emt 0:00:24]} 5. Nc3 {[%emt 0:00:15]} g6 {[%emt 0:00:10]} 6. Be3 {[%emt 0:04:31]} Bg7 {[%emt 0:00:05]} 7. Qd2 {[%emt 0:05:36]} Ng4 {[%emt 0:02:10]} 8. Bg5 {[%emt 0:00:49]} h6 {[%emt 0:01:50]} 9. Bh4 {[%emt 0:00:08]} Nc6 {[%emt 0:06:50]} 10. Nxc6 {[%emt 0:05:30]} bxc6 {[%emt 0:00:05]} 11. h3 {[%emt 0:05:51]} Nf6 {[%emt 0:01:07]} 12. e5 {[%emt 0:15:37]} dxe5 {[%emt 0:01:50]} 13. Qxd8+ {[%emt 0:00:08]} Kxd8 {[%emt 0:00:02]} 14. O-O-O+ {[%emt 0:00:10]} Kc7 {[%emt 0:03:55]} 15. Bc4 {[%emt 0:00:44]} e6 {[%emt 0:02:09]} 16. Rhe1 {[%emt 0:03:23]} Nd5 {[%emt 1:16:04]} 17. Ne4 {[%emt 0:03:12]} a5 {[%emt 0:00:00]} 18. f3 {[%emt 0:11:22]} g5 {[%emt 0:00:00]} 19. Bg3 {[%emt 0:02:54]} Rd8 {[%emt 0:00:00]} 20. h4 {[%emt 0:04:25]} f5 {[%emt 0:00:00]} 21. Nc5 {[%emt 0:01:24]} f4 {[%emt 0:00:00]} 22. Bf2 {[%emt 0:00:18]} gxh4 {[%emt 0:00:00]} 23. Nd3 {[%emt 0:05:40]} Rg8 {[%emt 0:00:00]} 24. Rd2 {[%emt 0:06:03]} Ne3 {[%emt 0:00:00]} 25. Bxe3 {[%emt 0:03:32]} fxe3 {[%emt 0:00:00]} 26. Rde2 {[%emt 0:01:19]} Bf6 {[%emt 0:00:00]} 27. Nc5 {[%emt 0:00:43]} Bg5 {[%emt 0:00:00]} 28. Bxe6 {[%emt 0:05:20]} Rg6 {[%emt 0:00:00]} 29. Bxc8 {[%emt 0:02:59]} Rxc8 {[%emt 0:00:00]} 30. Rd1 {[%emt 0:02:21]} Rd8 {[%emt 0:00:00]} 31. Rxd8 {[%emt 0:00:31]} Kxd8 {[%emt 0:00:00]} 32. Nb7+ {[%emt 0:00:21]} Kc7 {[%emt 0:00:00]} 33. Nxa5 {[%emt 0:00:22]} Bf4 {[%emt 0:00:00]} 34. Kd1 {[%emt 0:02:36]} h3 {[%emt 0:00:00]} 35. gxh3 {[%emt 0:02:14]} Rg1+ {[%emt 0:01:34]} 36. Re1 {[%emt 0:00:09]} Rg3 {[%emt 0:00:10]} 37. Ke2 {[%emt 0:06:40]} Rxh3 {[%emt 0:00:39]} 38. Nc4 {[%emt 0:00:22]} Rh2+ {[%emt 0:04:07]} 39. Kd3 {[%emt 0:00:28]} Rf2 {[%emt 0:02:45]} 40. Nxe3 {[%emt 0:01:24]} Rxf3 {[%emt 0:00:49]} 41. Ke4 {[%emt 0:04:43]} Rf2 {[%emt 0:01:11]} 42. Kd3 {[%emt 0:03:09]} h5 {[%emt 0:15:36]} 43. Nc4 {[%emt 0:04:25]} h4 {[%emt 0:00:35]} 44. Nxe5 {[%emt 0:00:09]} h3 {[%emt 0:00:38]} 45. Ke4 {[%emt 0:19:37]} Bxe5 {[%emt 0:04:31]} 46. Kxe5 {[%emt 0:00:05]} Rxc2 {[%emt 0:00:15]} 47. Rb1 {[%emt 0:00:35]} h2 {[%emt 0:00:20]} 48. Kd4 {[%emt 0:00:52]} Rg2 {[%emt 0:00:26]} 49. Rh1 {[%emt 0:00:43]} Rxb2 {[%emt 0:00:12]} 50. a3 {[%emt 0:00:17]} Kb6 {[%emt 0:04:04]} 51. Kc3 {[%emt 0:00:26]} Rg2 {[%emt 0:00:15]} 52. Kb4 {[%emt 0:00:46]} c5+ {[%emt 0:00:47]} 53. Kc4 {[%emt 0:00:55]} Rg4+ {[%emt 0:01:09]} 54. Kb3 {[%emt 0:00:16]} Rh4 {[%emt 0:00:06]} 55. Kc3 {[%emt 0:00:26]} Ka5 {[%emt 0:03:46]} 56. Kb3 {[%emt 0:00:20]} Kb5 {[%emt 0:00:25]} 57. Kb2 {[%emt 0:00:31]} Rh3 {[%emt 0:00:32]} 58. Ka2 {[%emt 0:00:41]} Ka5 {[%emt 0:01:09]} 59. Kb2 {[%emt 0:00:17]} Ka4 {[%emt 0:00:07]} 60. Ka2 {[%emt 0:00:32]} Rxa3+ {[%emt 0:00:11]} 61. Kb2 {[%emt 0:00:11]} Rh3 {[%emt 0:00:29]} 62. Ka2 {[%emt 0:00:20]} Kb4 {[%emt 0:00:23]} 63. Kb2 {[%emt 0:00:09]} Kc4 {[%emt 0:02:11]} 64. Kc2 {[%emt 0:00:43]} Kd4 {[%emt 0:00:15]} 65. Kd2 {[%emt 0:00:31]} Ra3 {[%emt 0:01:06]} 66. Kc2 {[%emt 0:00:30]} Ra2+ {[%emt 0:00:43]} 67. Kb1 {[%emt 0:01:12]} Rg2 {[%emt 0:00:26]} 68. Rd1+ {[%emt 0:00:48]} Kc4 {[%emt 0:00:13]} 69. Rc1+ {[%emt 0:00:08]} Kb4 {[%emt 0:00:29]} 70. Rc2 {[%emt 0:01:00]} h1=Q+ {[%emt 0:00:08]} 71. Kb2 {[%emt 0:00:07]} Qh2 {[%emt 0:00:34]} 0-1

[Event "LEM Niedersachsen-A-Open 2025"]
[Site "Verden"]
[Date "2025.01.02"]
[Round "2.26"]
[White "Harms, Friedjof"]
[Black "Rieping, Lea"]
[Result "1/2-1/2"]
[ECO "B01"]
[WhiteElo "1884"]
[BlackElo "1973"]
[Annotator "NA RC"]
[PlyCount "79"]
[EventDate "2024.12.27"]
[EventType "swiss"]
[EventCountry "GER"]
[SourceTitle "playchess.com"]
[Source "ChessBase"]
[SourceQuality "1"]
[TimeControl "40/5400+30:1800+30"]

1. e4 {[%emt 0:01:20]} d5 {[%emt 0:00:05]} 2. exd5 {[%emt 0:00:03]} Qxd5 {[%emt 0:00:03]} 3. Nc3 {[%emt 0:00:03]} Qa5 {[%emt 0:00:05]} 4. d4 {[%emt 0:00:04]} Nf6 {[%emt 0:00:03]} 5. Bc4 {[%emt 0:00:24]} Bg4 {[%emt 0:00:21]} 6. f3 {[%emt 0:01:00]} Bh5 {[%emt 0:00:06]} 7. Bd2 {[%emt 0:00:19]} c6 {[%emt 0:01:03]} 8. Qe2 {[%emt 0:00:25]} Qc7 {[%emt 0:02:02]} 9. O-O-O {[%emt 0:10:43]} Nbd7 {[%emt 0:16:30]} 10. Nh3 {[%emt 0:01:35]} e6 {[%emt 0:10:36]} 11. Bf4 {[%emt 0:12:09]} Bd6 {[%emt 0:00:19]} 12. Bxd6 {[%emt 0:00:43]} Qxd6 {[%emt 0:00:05]} 13. d5 {[%emt 0:04:12]} cxd5 {[%emt 0:23:25]} 14. Nxd5 {[%emt 0:02:41]} Qb8 {[%emt 0:04:07]} 15. g4 {[%emt 0:17:38]} Bg6 {[%emt 0:00:29]} 16. Bb5 {[%emt 0:00:22]} Kf8 {[%emt 0:00:45]} 17. Nxf6 {[%emt 0:04:11]} Nxf6 {[%emt 0:00:08]} 18. Qd2 {[%emt 0:05:38]} Qc7 {[%emt 0:06:52]} 19. Nf4 {[%emt 0:06:47]} Rc8 {[%emt 0:01:07]} 20. Ba4 {[%emt 0:03:59]} e5 {[%emt 0:06:50]} 21. Qb4+ {[%emt 0:02:21]} Kg8 {[%emt 0:00:37]} 22. Nxg6 {[%emt 0:00:46]} hxg6 {[%emt 0:00:07]} 23. g5 {[%emt 0:00:59]} Nh5 {[%emt 0:06:33]} 24. Rd7 {[%emt 0:00:38]} Qc4 {[%emt 0:02:19]} 25. Qxc4 {[%emt 0:03:03]} Rxc4 {[%emt 0:00:06]} 26. Bb3 {[%emt 0:00:23]} Rf4 {[%emt 0:00:08]} 27. Re1 {[%emt 0:04:17]} Rxf3 {[%emt 0:01:11]} 28. Rxe5 {[%emt 0:00:15]} Kh7 {[%emt 0:00:21]} 29. Rxb7 {[%emt 0:04:38]} Rd8 {[%emt 0:00:10]} 30. Re1 {[%emt 0:02:33]} a5 {[%emt 0:02:22]} 31. Rxf7 {[%emt 0:02:15]} Nf4 {[%emt 0:00:19]} 32. Ra7 {[%emt 0:01:12]} Ne2+ {[%emt 0:03:49]} 33. Kb1 {[%emt 0:00:30]} Re3 {[%emt 0:01:17]} 34. Ka1 {[%emt 0:01:01]} a4 {[%emt 0:05:38]} 35. Bc4 {[%emt 0:02:16]} Nd4 {[%emt 0:02:03]} 36. Rxe3 {[%emt 0:01:49]} Nxc2+ {[%emt 0:00:04]} 37. Kb1 {[%emt 0:00:06]} Nxe3 {[%emt 0:00:03]} 38. Be2 {[%emt 0:00:55]} Rd2 {[%emt 0:00:07]} 39. Re7 {[%emt 0:02:51]} Rxe2 {[%emt 0:00:24]} 40. Kc1 {[%emt 0:00:16]} 1/2-1/2

[Event "LEM Niedersachsen-A-Open 2025"]
[Site "Verden"]
[Date "2025.01.02"]
[Round "2.27"]
[White "Buecklers, Martin"]
[Black "Ludwig, Bernard"]
[Result "1/2-1/2"]
[ECO "D02"]
[WhiteElo "1859"]
[BlackElo "1962"]
[Annotator "NA RC"]
[PlyCount "85"]
[EventDate "2024.12.27"]
[EventType "swiss"]
[EventCountry "GER"]
[SourceTitle "playchess.com"]
[Source "ChessBase"]
[SourceQuality "1"]
[TimeControl "40/5400+30:1800+30"]

1. Nf3 {[%emt 0:00:04]} Nf6 {[%emt 0:01:08]} 2. g3 {[%emt 0:00:05]} d5 {[%emt 0:00:34]} 3. Bg2 {[%emt 0:00:07]} e6 {[%emt 0:01:08]} 4. O-O {[%emt 0:01:00]} c5 {[%emt 0:01:04]} 5. d4 {[%emt 0:00:23]} Nc6 {[%emt 0:01:08]} 6. b3 {[%emt 0:04:54]} cxd4 {[%emt 0:06:07]} 7. Nxd4 {[%emt 0:00:38]} Bc5 {[%emt 0:02:51]} 8. Nxc6 {[%emt 0:00:33]} bxc6 {[%emt 0:00:25]} 9. Bb2 {[%emt 0:03:04]} O-O {[%emt 0:01:55]} 10. c4 {[%emt 0:03:22]} Bb7 {[%emt 0:03:57]} 11. e3 {[%emt 0:01:53]} Qe7 {[%emt 0:02:42]} 12. Nc3 {[%emt 0:10:46]} Rfd8 {[%emt 0:06:18]} 13. Qc2 {[%emt 0:01:07]} d4 {[%emt 0:06:37]} 14. exd4 {[%emt 0:00:05]} Bxd4 {[%emt 0:00:12]} 15. Ne4 {[%emt 0:09:26]} Bxb2 {[%emt 0:05:43]} 16. Qxb2 {[%emt 0:00:24]} Nxe4 {[%emt 0:00:24]} 17. Bxe4 {[%emt 0:00:40]} c5 {[%emt 0:02:43]} 18. Bxb7 {[%emt 0:10:29]} Qxb7 {[%emt 0:00:10]} 19. Rfd1 {[%emt 0:00:42]} Rd7 {[%emt 0:07:41]} 20. Rd2 {[%emt 0:05:55]} Rad8 {[%emt 0:03:41]} 21. Rad1 {[%emt 0:00:20]} a5 {[%emt 0:09:37]} 22. Rxd7 {[%emt 0:05:56]} Rxd7 {[%emt 0:00:07]} 23. Rxd7 {[%emt 0:00:03]} Qxd7 {[%emt 0:00:04]} 24. Qe5 {[%emt 0:00:14]} Qc8 {[%emt 0:03:32]} 25. Qd6 {[%emt 0:00:44]} g6 {[%emt 0:12:17]} 26. Qb6 {[%emt 0:00:46]} a4 {[%emt 0:02:23]} 27. bxa4 {[%emt 0:00:16]} Qd7 {[%emt 0:00:12]} 28. Qb8+ {[%emt 0:06:36]} Kg7 {[%emt 0:00:11]} 29. Qe5+ {[%emt 0:08:34]} Kg8 {[%emt 0:00:46]} 30. Qxc5 {[%emt 0:00:07]} Qxa4 {[%emt 0:01:42]} 31. a3 {[%emt 0:03:21]} Qd1+ {[%emt 0:01:14]} 32. Kg2 {[%emt 0:00:07]} Qc2 {[%emt 0:00:17]} 33. Qc6 {[%emt 0:03:18]} h5 {[%emt 0:05:43]} 34. h4 {[%emt 0:01:24]} Qf5 {[%emt 0:04:30]} 35. Qf3 {[%emt 0:05:02]} Qc5 {[%emt 0:01:01]} 36. Qd3 {[%emt 0:00:54]} e5 {[%emt 0:01:20]} 37. a4 {[%emt 0:01:15]} Qc6+ {[%emt 0:00:50]} 38. Qd5 {[%emt 0:01:53]} Qxa4 {[%emt 0:00:46]} 39. c5 {[%emt 0:00:57]} e4 {[%emt 0:04:55]} 40. c6 {[%emt 0:10:17]} Qc2 {[%emt 0:00:54]} 41. Qd7 {[%emt 0:04:53]} e3 {[%emt 0:06:28]} 42. Qe8+ {[%emt 0:00:20]} Kg7 {[%emt 0:02:40]} 43. Qxe3 {[%emt 0:00:06]} 1/2-1/2

[Event "LEM Niedersachsen-A-Open 2025"]
[Site "Verden"]
[Date "2025.01.02"]
[Round "2.28"]
[White "Aden, Meino"]
[Black "Lehmkuhl, Stefan"]
[Result "1-0"]
[ECO "D20"]
[WhiteElo "1933"]
[BlackElo "1874"]
[Annotator "NA RC"]
[PlyCount "97"]
[EventDate "2024.12.27"]
[EventType "swiss"]
[EventCountry "GER"]
[SourceTitle "playchess.com"]
[Source "ChessBase"]
[SourceQuality "1"]
[TimeControl "40/5400+30:1800+30"]

1. d4 {[%emt 0:00:07]} d5 {[%emt 0:00:26]} 2. c4 {[%emt 0:00:07]} dxc4 {[%emt 0:00:52]} 3. e4 {[%emt 0:00:17]} c5 {[%emt 0:00:32]} 4. d5 {[%emt 0:00:07]} Nf6 {[%emt 0:02:41]} 5. Nc3 {[%emt 1:32:22]} e6 {[%emt 0:01:15]} 6. Bxc4 {[%emt 0:00:00]} exd5 {[%emt 0:01:51]} 7. exd5 {[%emt 0:00:00]} Bd6 {[%emt 0:01:03]} 8. Qe2+ {[%emt 0:00:00]} Qe7 {[%emt 0:01:12]} 9. Nb5 {[%emt 0:00:00]} Kd7 {[%emt 0:05:52]} 10. Qxe7+ {[%emt 0:00:00]} Bxe7 {[%emt 0:04:01]} 11. Bf4 {[%emt 0:00:00]} Ne8 {[%emt 0:07:20]} 12. Nxa7 {[%emt 0:00:00]} Bd6 {[%emt 0:04:43]} 13. Nxc8 {[%emt 0:00:00]} Kxc8 {[%emt 0:00:45]} 14. Be3 {[%emt 0:00:00]} Nc7 {[%emt 0:01:35]} 15. Ne2 {[%emt 0:00:00]} Nd7 {[%emt 0:02:22]} 16. Bf4 {[%emt 0:00:00]} Ne5 {[%emt 0:01:30]} 17. Bxe5 {[%emt 0:00:00]} Bxe5 {[%emt 0:00:07]} 18. d6 {[%emt 0:00:00]} Bxd6 {[%emt 0:01:05]} 19. O-O-O {[%emt 0:00:00]} Be5 {[%emt 0:02:10]} 20. f4 {[%emt 0:00:00]} Bf6 {[%emt 0:01:05]} 21. Bxf7 {[%emt 0:00:00]} Rf8 {[%emt 0:00:16]} 22. Bb3 {[%emt 0:00:00]} b5 {[%emt 0:00:54]} 23. Kb1 {[%emt 0:00:00]} c4 {[%emt 0:00:44]} 24. Bc2 {[%emt 0:00:00]} Na6 {[%emt 0:05:20]} 25. Bxh7 {[%emt 0:00:00]} Nc5 {[%emt 0:02:09]} 26. Rd5 {[%emt 0:00:00]} Na4 {[%emt 0:00:14]} 27. Bc2 {[%emt 0:00:00]} Nxb2 {[%emt 0:02:08]} 28. Rxb5 {[%emt 0:00:00]} Rb8 {[%emt 0:01:08]} 29. Rxb8+ {[%emt 0:00:00]} Kxb8 {[%emt 0:00:08]} 30. Ng3 {[%emt 0:00:00]} c3 {[%emt 0:04:47]} 31. Ne4 {[%emt 0:00:00]} Nc4 {[%emt 0:00:21]} 32. Re1 {[%emt 0:00:00]} Nd2+ {[%emt 0:01:21]} 33. Kc1 {[%emt 0:00:00]} Re8 {[%emt 0:04:22]} 34. Re2 {[%emt 0:00:00]} Nxe4 {[%emt 0:02:46]} 35. Rxe4 {[%emt 0:00:00]} Rd8 {[%emt 0:00:15]} 36. Re2 {[%emt 0:00:00]} g5 {[%emt 0:01:29]} 37. Re6 {[%emt 0:00:00]} Rf8 {[%emt 0:00:03]} 38. f5 {[%emt 0:00:00]} g4 {[%emt 0:00:08]} 39. Be4 {[%emt 0:00:00]} Bg5+ {[%emt 0:01:00]} 40. Kc2 {[%emt 0:00:00]} Bd2 {[%emt 0:00:31]} 41. a4 {[%emt 0:23:06]} Kc7 {[%emt 0:30:11]} 42. Rc6+ {[%emt 0:01:30]} Kd7 {[%emt 0:00:15]} 43. a5 {[%emt 0:01:11]} Re8 {[%emt 0:00:30]} 44. Rc4 {[%emt 0:00:08]} Rb8 {[%emt 0:00:23]} 45. Bc6+ {[%emt 0:04:56]} Ke7 {[%emt 0:00:36]} 46. a6 {[%emt 0:00:19]} Rb2+ {[%emt 0:01:03]} 47. Kd3 {[%emt 0:00:08]} Be1 {[%emt 0:01:42]} 48. a7 {[%emt 0:05:52]} Ra2 {[%emt 0:01:08]} 49. a8=Q {[%emt 0:00:31]} 1-0

[Event "LEM Niedersachsen-A-Open 2025"]
[Site "Verden"]
[Date "2025.01.02"]
[Round "2.29"]
[White "Kiesel, Lara"]
[Black "Lebiedz, Oliver"]
[Result "0-1"]
[ECO "D32"]
[WhiteElo "1825"]
[BlackElo "1939"]
[Annotator "NA RC"]
[PlyCount "66"]
[EventDate "2024.12.27"]
[EventType "swiss"]
[EventCountry "GER"]
[SourceTitle "playchess.com"]
[Source "ChessBase"]
[SourceQuality "1"]
[TimeControl "40/5400+30:1800+30"]

1. Nf3 {[%emt 0:00:09]} c5 {[%emt 0:00:59]} 2. c4 {[%emt 0:00:06]} e6 {[%emt 0:00:09]} 3. Nc3 {[%emt 0:00:55]} d5 {[%emt 0:00:16]} 4. cxd5 {[%emt 0:00:12]} exd5 {[%emt 0:00:01]} 5. d4 {[%emt 1:31:38]} Nc6 {[%emt 0:00:34]} 6. e3 {[%emt 0:00:00]} Nf6 {[%emt 0:01:39]} 7. Bb5 {[%emt 0:00:00]} Bd6 {[%emt 0:01:01]} 8. dxc5 {[%emt 0:00:00]} Bxc5 {[%emt 0:00:02]} 9. O-O {[%emt 0:00:00]} O-O {[%emt 0:00:22]} 10. b3 {[%emt 0:00:00]} Bg4 {[%emt 0:02:41]} 11. Bb2 {[%emt 0:00:00]} Bb6 {[%emt 0:05:40]} 12. Na4 {[%emt 0:00:00]} Bc7 {[%emt 0:08:07]} 13. Bxf6 {[%emt 0:00:00]} Qxf6 {[%emt 0:00:41]} 14. Qxd5 {[%emt 0:00:00]} Bxf3 {[%emt 0:01:51]} 15. Qxf3 {[%emt 0:00:00]} Qe5 {[%emt 0:00:04]} 16. Qg3 {[%emt 0:00:00]} Qxa1 {[%emt 0:03:25]} 17. Qxc7 {[%emt 0:00:00]} Qxa2 {[%emt 0:00:13]} 18. Qxb7 {[%emt 0:00:00]} Na5 {[%emt 0:00:26]} 19. Qe4 {[%emt 0:00:00]} Nxb3 {[%emt 0:03:16]} 20. Bd3 {[%emt 0:00:00]} g6 {[%emt 0:01:17]} 21. Qh4 {[%emt 0:00:00]} Rac8 {[%emt 0:02:22]} 22. Qb4 {[%emt 0:00:00]} Nc1 {[%emt 0:04:10]} 23. Ba6 {[%emt 0:00:00]} Rb8 {[%emt 0:04:01]} 24. Qg4 {[%emt 0:00:00]} h5 {[%emt 0:01:01]} 25. Qh4 {[%emt 0:00:00]} Ne2+ {[%emt 0:00:26]} 26. Kh1 {[%emt 0:00:00]} Kg7 {[%emt 0:07:37]} 27. Nc5 {[%emt 0:00:00]} Rfd8 {[%emt 0:02:03]} 28. Bc4 {[%emt 0:00:00]} Rb1 {[%emt 0:00:35]} 29. Bxe2 {[%emt 0:00:00]} Qxe2 {[%emt 0:00:08]} 30. Ne6+ {[%emt 0:00:00]} fxe6 {[%emt 0:00:21]} 31. Qe7+ {[%emt 0:00:00]} Kh6 {[%emt 0:00:10]} 32. Rxb1 {[%emt 0:00:00]} Rd1+ {[%emt 0:00:03]} 33. Rxd1 {[%emt 0:00:00]} Qxd1# {[%emt 0:01:00]} 0-1

[Event "LEM Niedersachsen-A-Open 2025"]
[Site "Verden"]
[Date "2025.01.02"]
[Round "2.30"]
[White "Nolting, Dennis"]
[Black "Kozik, Andreas"]
[Result "1/2-1/2"]
[ECO "C01"]
[WhiteElo "1937"]
[BlackElo "1868"]
[Annotator "NA RC"]
[PlyCount "56"]
[EventDate "2024.12.27"]
[EventType "swiss"]
[EventCountry "GER"]
[SourceTitle "playchess.com"]
[Source "ChessBase"]
[SourceQuality "1"]
[TimeControl "40/5400+30:1800+30"]

1. e4 {[%emt 0:00:02]} e6 {[%emt 0:00:04]} 2. d4 {[%emt 0:00:05]} d5 {[%emt 0:00:07]} 3. Bd3 {[%emt 0:00:05]} dxe4 {[%emt 0:00:30]} 4. Bxe4 {[%emt 0:00:06]} Nf6 {[%emt 0:00:10]} 5. Bf3 {[%emt 0:00:03]} c5 {[%emt 0:01:16]} 6. Ne2 {[%emt 0:00:00]} Be7 {[%emt 0:01:07]} 7. O-O {[%emt 0:00:33]} Nc6 {[%emt 0:04:30]} 8. dxc5 {[%emt 0:01:52]} Qxd1 {[%emt 0:05:45]} 9. Rxd1 {[%emt 0:00:05]} Bxc5 {[%emt 0:00:25]} 10. Bg5 {[%emt 0:00:23]} Ne5 {[%emt 0:06:12]} 11. Nbc3 {[%emt 0:03:14]} Nxf3+ {[%emt 0:05:16]} 12. gxf3 {[%emt 0:00:05]} Bd7 {[%emt 0:03:27]} 13. Bxf6 {[%emt 0:01:59]} gxf6 {[%emt 0:00:07]} 14. Ne4 {[%emt 0:00:04]} Be7 {[%emt 0:00:36]} 15. Nd6+ {[%emt 0:01:29]} Bxd6 {[%emt 0:03:04]} 16. Rxd6 {[%emt 0:00:05]} Rg8+ {[%emt 0:00:30]} 17. Kf1 {[%emt 0:00:35]} Ke7 {[%emt 0:08:22]} 18. Rad1 {[%emt 0:05:07]} Rad8 {[%emt 0:09:40]} 19. Nc3 {[%emt 0:06:57]} Bc6 {[%emt 0:08:38]} 20. Rxd8 {[%emt 0:00:53]} Rxd8 {[%emt 0:00:07]} 21. Rxd8 {[%emt 0:00:04]} Kxd8 {[%emt 0:00:07]} 22. Ne4 {[%emt 0:00:29]} Ke7 {[%emt 0:04:15]} 23. Ke2 {[%emt 0:00:13]} f5 {[%emt 0:04:47]} 24. Nc5 {[%emt 0:02:50]} b6 {[%emt 0:01:27]} 25. Nd3 {[%emt 0:01:14]} Bb5 {[%emt 0:02:04]} 26. f4 {[%emt 0:01:24]} f6 {[%emt 0:01:35]} 27. f3 {[%emt 0:05:48]} Kd6 {[%emt 0:07:43]} 28. Ke3 {[%emt 0:03:21]} Bxd3 {[%emt 0:07:52]} 1/2-1/2

[Event "LEM Niedersachsen-A-Open 2025"]
[Site "Verden"]
[Date "2025.01.02"]
[Round "2.31"]
[White "Stoy, Ulf"]
[Black "Aden, Dagmar"]
[Result "1/2-1/2"]
[ECO "A36"]
[WhiteElo "1918"]
[BlackElo "1861"]
[Annotator "NA RC"]
[PlyCount "106"]
[EventDate "2024.12.27"]
[EventType "swiss"]
[EventCountry "GER"]
[SourceTitle "playchess.com"]
[Source "ChessBase"]
[SourceQuality "1"]
[TimeControl "40/5400+30:1800+30"]

1. c4 {[%emt 0:00:03]} Nf6 {[%emt 0:00:09]} 2. g3 {[%emt 0:00:09]} c5 {[%emt 0:00:29]} 3. Bg2 {[%emt 0:00:12]} Nc6 {[%emt 0:00:24]} 4. Nc3 {[%emt 0:00:29]} d6 {[%emt 0:01:12]} 5. d3 {[%emt 0:02:07]} Bd7 {[%emt 0:01:15]} 6. e3 {[%emt 0:03:17]} g6 {[%emt 0:02:19]} 7. Nge2 {[%emt 0:00:53]} Bg7 {[%emt 0:00:38]} 8. b3 {[%emt 0:02:15]} Qc8 {[%emt 0:03:02]} 9. Bb2 {[%emt 0:12:04]} O-O {[%emt 0:00:22]} 10. Qd2 {[%emt 0:01:10]} Rb8 {[%emt 0:02:17]} 11. O-O {[%emt 0:05:06]} Bh3 {[%emt 0:02:11]} 12. Nf4 {[%emt 0:03:39]} Bxg2 {[%emt 0:00:34]} 13. Kxg2 {[%emt 0:00:03]} a6 {[%emt 0:02:27]} 14. Ncd5 {[%emt 0:03:23]} Nxd5 {[%emt 0:01:13]} 15. cxd5 {[%emt 0:00:15]} e5 {[%emt 0:04:07]} 16. dxe6 {[%emt 0:05:01]} fxe6 {[%emt 0:00:30]} 17. Bxg7 {[%emt 0:06:25]} Kxg7 {[%emt 0:00:13]} 18. Qc3+ {[%emt 0:02:42]} e5 {[%emt 0:03:29]} 19. Nd5 {[%emt 0:05:19]} Qe6 {[%emt 0:02:38]} 20. e4 {[%emt 0:08:12]} Nd4 {[%emt 0:04:00]} 21. f3 {[%emt 0:03:10]} b5 {[%emt 0:11:27]} 22. Rf2 {[%emt 0:01:28]} Rb7 {[%emt 0:04:26]} 23. Raf1 {[%emt 0:00:32]} Kg8 {[%emt 0:01:20]} 24. Qc1 {[%emt 0:02:57]} Rbf7 {[%emt 0:03:46]} 25. Qh6 {[%emt 0:04:14]} Nc6 {[%emt 0:03:35]} 26. f4 {[%emt 0:08:34]} exf4 {[%emt 0:03:05]} 27. gxf4 {[%emt 0:00:15]} Ne7 {[%emt 0:04:19]} 28. f5 {[%emt 0:07:21]} Nxf5 {[%emt 0:01:39]} 29. Qh3 {[%emt 0:06:32]} Nd4 {[%emt 0:02:17]} 30. Nf6+ {[%emt 0:01:04]} Kh8 {[%emt 0:02:36]} 31. Qh4 {[%emt 0:02:44]} Nf5 {[%emt 0:02:15]} 32. exf5 {[%emt 0:01:29]} Qxf6 {[%emt 0:00:31]} 33. Qxf6+ {[%emt 0:00:43]} Rxf6 {[%emt 0:00:10]} 34. Kg3 {[%emt 0:00:56]} Rxf5 {[%emt 0:01:46]} 35. Rxf5 {[%emt 0:00:09]} gxf5 {[%emt 0:00:10]} 36. Re1 {[%emt 0:00:34]} Kg7 {[%emt 0:02:31]} 37. Re6 {[%emt 0:00:27]} Rf6 {[%emt 0:00:28]} 38. Re7+ {[%emt 0:00:10]} Kg6 {[%emt 0:06:00]} 39. Kf4 {[%emt 0:00:08]} h6 {[%emt 0:04:24]} 40. Ra7 {[%emt 0:01:36]} d5 {[%emt 0:00:35]} 41. Rc7 {[%emt 0:30:13]} c4 {[%emt 0:30:34]} 42. bxc4 {[%emt 0:00:25]} bxc4 {[%emt 0:00:18]} 43. dxc4 {[%emt 0:00:17]} dxc4 {[%emt 0:00:15]} 44. Rxc4 {[%emt 0:00:08]} Rb6 {[%emt 0:00:39]} 45. a4 {[%emt 0:01:37]} a5 {[%emt 0:01:41]} 46. h4 {[%emt 0:02:12]} Kf6 {[%emt 0:00:28]} 47. h5 {[%emt 0:00:00]} Ke6 {[%emt 0:19:16]} 48. Rc5 {[%emt 0:00:00]} Rb4+ {[%emt 0:00:00]} 49. Kg3 {[%emt 0:00:00]} Rxa4 {[%emt 0:00:00]} 50. Rc6+ {[%emt 0:00:00]} Ke5 {[%emt 0:00:00]} 51. Rxh6 {[%emt 0:00:00]} Ra3+ {[%emt 0:00:00]} 52. Kg2 {[%emt 0:00:00]} Kf4 {[%emt 0:00:00]} 53. Ra6 {[%emt 0:00:00]} Ra2+ {[%emt 0:00:00]} 1/2-1/2